{"text_format":"3","workbook":"xlsx","n_sheets":2,"sheets":["Analyse af værdipapirbeholdning","Cirkeldiagram over værdipapirer"],"not_rendered":{"charts":2,"images":1,"defined_names":2},"unopened":[{"sheet":"Cirkeldiagram over værdipapirer","index":1,"reason":"not_a_worksheet"}],"read":"whole","date_system":"1900"}

{"sheet":"Analyse af værdipapirbeholdning","index":0,"n_rows":9,"n_cols":11,"rows_kept":9,"merged":[[0,0,1,5],[0,6,0,8],[0,9,0,10],[1,6,1,8],[1,9,1,10],[2,0,3,5],[2,6,2,8],[2,9,2,10],[3,6,3,8],[3,9,3,10]]}
["Analyse af værdipapirbeholdning",{"$nulls":5},"Totale kontoomkostninger",null,null,{"$f":"SUM(G6:G8)","v":null}]
[{"$nulls":6},"Kontienes værdi",null,null,{"$f":"SUM(I6:I8)","v":null}]
[{"$f":"TODAY()","v":null},{"$nulls":5},"Ikke realiseret gevinst/tab kr",null,null,{"$f":"J2-J1","v":null}]
[{"$nulls":6},"Ikke realiseret gevinst/tab %",null,null,{"$f":"(J2/J1)-100%","v":null}]
["Investeringsnavn","Kontonavn eller -nummer","Symbol","Antal","Købspris pr. aktie","Handelsomkostninger","Samlede omkostninger (Indkøbspris og gebyrer)","Aktuel kurs","Markedsværdi","Gevinst/tab (kr)","Gevinst/tab (%)"]
["A Datum Corporation","Woodgrove Bank","AAAA",100,{"v":49,"d":"kr49.00"},{"v":29,"d":"kr29.00"},{"$f":"([Antal]*[Købspris pr. aktie])+[Handelsomkostninger]","v":null},{"v":56.99,"d":"kr56.99"},{"$f":"[Antal]*[Aktuel kurs]","v":null},{"$f":"[Markedsværdi]-[Samlede omkostninger (Indkøbspris og gebyrer)]","v":null},{"$f":"IF(ISERR([Markedsværdi]/[Samlede omkostninger (Indkøbspris og gebyrer)]),\"\",([Markedsværdi]/[Samlede omkostninger (Indkøbspris og gebyrer)])-100%)","v":null}]
["Adventure Works","Woodgrove Bank","AWAW",250,{"v":21.56,"d":"kr21.56"},{"v":13,"d":"kr13.00"},{"$f":"([Antal]*[Købspris pr. aktie])+[Handelsomkostninger]","v":null},{"v":19.13,"d":"kr19.13"},{"$f":"[Antal]*[Aktuel kurs]","v":null},{"$f":"[Markedsværdi]-[Samlede omkostninger (Indkøbspris og gebyrer)]","v":null},{"$f":"IF(ISERR([Markedsværdi]/[Samlede omkostninger (Indkøbspris og gebyrer)]),\"\",([Markedsværdi]/[Samlede omkostninger (Indkøbspris og gebyrer)])-100%)","v":null}]
["Wingtip Toys","Woodgrove Bank","WWTT",1200,{"v":7.01,"d":"kr7.01"},{"v":26,"d":"kr26.00"},{"$f":"([Antal]*[Købspris pr. aktie])+[Handelsomkostninger]","v":null},{"v":7.56,"d":"kr7.56"},{"$f":"[Antal]*[Aktuel kurs]","v":null},{"$f":"[Markedsværdi]-[Samlede omkostninger (Indkøbspris og gebyrer)]","v":null},{"$f":"IF(ISERR([Markedsværdi]/[Samlede omkostninger (Indkøbspris og gebyrer)]),\"\",([Markedsværdi]/[Samlede omkostninger (Indkøbspris og gebyrer)])-100%)","v":null}]
["Total",{"$nulls":5},{"$f":"SUBTOTAL(109,[Samlede omkostninger (Indkøbspris og gebyrer)])","v":null},null,{"$f":"SUBTOTAL(109,[Markedsværdi])","v":null},{"$f":"SUBTOTAL(109,[Gevinst/tab (kr)])","v":null},{"$f":"Tabel1[[#Totals],[Markedsværdi]]/Tabel1[[#Totals],[Samlede omkostninger (Indkøbspris og gebyrer)]]-100%","v":null}]